bitfinex/quotes_SOLUSD_20241007
["timestamp","ask_amount","ask_price","bid_price","bid_amount"]
[1728259201102,26.71698,146.68,146.59,23.776884]
[1728259203725,20.0,146.66,146.58,23.902374]
[1728259203926,20.0,146.66,146.58,23.776884]
[1728259204099,20.0,146.66,146.56,0.12549]
[1728259204100,0.5,146.65,146.57,28.36399601]
[1728259204300,15.5928,146.67,146.57,28.36399601]
[1728259204930,6.466,146.68,146.61,12.51569601]
[1728259205132,15.9819,146.7,146.61,12.51569601]
[1728259205628,15.9819,146.7,146.62,23.776884]
[1728259205827,15.9819,146.7,146.63,12.51569601]
[1728259206326,6.1925,146.72,146.63,12.51569601]
[1728259206522,6.6925,146.72,146.63,28.25169601]
[1728259206834,6.1925,146.72,146.63,15.736]
[1728259207037,16.1067,146.73,146.65,12.51569601]
[1728259207419,16.1067,146.73,146.66,1.36328688]
[1728259208635,16.1067,146.73,146.65,12.51569601]
[1728259208812,20.25098,146.72,146.63,15.736]
[1728259209016,20.25098,146.72,146.63,28.25169601]
[1728259209417,20.0,146.72,146.64,23.776884]
[1728259209826,16.6067,146.73,146.65,12.51569601]
[1728259210333,20.12549,146.74,146.65,12.51569601]
[1728259210524,0.25098,146.74,146.65,12.51569601]
[1728259211139,6.3434,146.75,146.66,23.776884]
[1728259211339,0.5,146.74,146.65,12.51569601]
[1728259211920,20.5,146.74,146.65,12.51569601]
[1728259212119,0.12549,146.73,146.65,12.51569601]
[1728259212630,0.25098,146.73,146.64,23.776884]
[1728259212843,0.25098,146.73,146.65,12.51569601]
[1728259216216,20.0,146.74,146.65,12.51569601]
[1728259216419,20.0,146.74,146.67,12.51569601]
[1728259216621,0.5,146.73,146.67,12.51569601]
[1728259221742,20.0,146.74,146.67,12.51569601]
[1728259222039,0.5,146.73,146.67,12.51569601]
[1728259222748,0.5,146.73,146.64,23.776884]
[1728259222915,0.5,146.73,146.65,12.51569601]
[1728259223332,0.75098,146.72,146.65,12.51569601]
[1728259223538,0.75098,146.72,146.63,15.736]
[1728259223731,0.75098,146.72,146.64,12.51569601]
[1728259224825,24.027864,146.72,146.64,12.51569601]
[1728259225547,24.027864,146.7,146.61,6.0198]
[1728259225718,24.027864,146.68,146.59,15.3388]
[1728259225919,24.027864,146.66,146.56,12.51569601]
[1728259226223,0.25098,146.64,146.56,12.51569601]
[1728259226440,0.5,146.63,146.56,12.51569601]
[1728259226637,0.5,146.63,146.55,15.3388]
[1728259226851,24.027864,146.64,146.55,27.85449601]
[1728259227339,15.1352,146.65,146.57,12.51569601]
[1728259227718,15.1352,146.65,146.59,12.51569601]
[1728259228948,0.25098,146.66,146.59,12.51569601]
[1728259229135,24.027864,146.67,146.59,12.51569601]
[1728259230454,6.8194,146.64,146.59,19.33699601]
[1728259235627,0.25098,146.67,146.6,8.1850612]
[1728259235829,6.8185,146.66,146.61,19.33629601]
[1728259236133,6.8185,146.66,146.62,1.36379963]
[1728259236736,0.12549,146.68,146.61,19.33629601]
[1728259236936,0.62549,146.68,146.6,19.33689601]
[1728259237455,20.62549,146.68,146.6,19.33689601]
[1728259238036,6.8194,146.64,146.6,19.33689601]
[1728259240851,20.62549,146.68,146.6,12.51569601]
[1728259241026,6.8199,146.63,146.6,12.51569601]
[1728259241231,6.8195,146.64,146.6,12.51569601]
[1728259241427,6.8198,146.63,146.6,12.51569601]
[1728259243542,6.8195,146.64,146.6,12.51569601]
[1728259246157,6.8195,146.64,146.61,1.36394303]
[1728259246459,6.819,146.65,146.61,1.36394303]
[1728259246661,6.819,146.65,146.61,8.18464303]
[1728259247956,6.819,146.65,146.61,6.8207]
[1728259248164,6.8185,146.66,146.62,6.8202]
[1728259248363,6.8185,146.66,146.62,1.36383186]
[1728259248540,6.8181,146.67,146.62,20.69952787]
[1728259249450,22.21999,146.69,146.62,19.33569601]
[1728259249645,6.8185,146.66,146.62,12.51569601]
[1728259250047,6.8166,146.71,146.64,12.51569601]
[1728259250252,32.1389,146.73,146.64,19.33499601]
[1728259250438,6.8177,146.68,146.64,36.38299601]
[1728259250639,6.8177,146.68,146.65,1.36352268]
[1728259250836,6.8172,146.69,146.64,36.38299601]
[1728259254563,32.1389,146.73,146.64,36.38299601]
[1728259254772,6.8175,146.68,146.64,17.048]
[1728259254954,6.8175,146.68,146.64,29.56369601]
[1728259256242,6.8175,146.68,146.65,1.36350852]
[1728259256557,6.8175,146.68,146.64,36.38299601]
[1728259257463,6.8166,146.7,146.66,12.51569601]
[1728259257673,6.8166,146.7,146.67,1.36335107]
[1728259257851,6.8171,146.69,146.66,12.51569601]
[1728259259568,24.276884,146.72,146.61,0.12549]
[1728259259877,6.8184,146.66,146.62,12.51569601]
[1728259260074,6.8184,146.66,146.62,19.33589601]
[1728259260372,6.819,146.65,146.61,17.0517]
[1728259260550,6.819,146.65,146.61,29.56739601]
[1728259261346,6.8194,146.64,146.6,28.59799601]
[1728259261547,6.8194,146.64,146.6,16.0823]
[1728259261958,6.8202,146.63,146.6,16.0823]
[1728259262159,6.8202,146.63,146.61,1.36398873]
[1728259262551,6.8203,146.62,146.6,16.0823]
[1728259262757,6.8203,146.62,146.58,29.57049601]
[1728259264172,6.8203,146.62,146.58,17.0548]
[1728259265370,0.25098,146.67,146.56,23.3171]
[1728259265577,0.25098,146.64,146.56,16.4941]
[1728259265791,0.25098,146.64,146.55,29.57419601]
[1728259265792,6.8218,146.59,146.55,29.57419601]
[1728259266070,6.8222,146.58,146.55,29.57419601]
[1728259266271,6.8222,146.58,146.52,15.4289]
[1728259266448,6.8222,146.58,146.53,6.8244]
[1728259266648,6.8222,146.58,146.53,19.34009601]
[1728259266867,6.8222,146.58,146.54,1.36443304]
[1728259267052,6.8222,146.58,146.53,19.34009601]
[1728259268157,6.8222,146.58,146.54,1.3644332]
[1728259269578,6.8222,146.58,146.53,19.34009601]
[1728259270871,16.5118,146.62,146.55,12.51569601]
[1728259271171,16.5118,146.62,146.54,1.36445673]
[1728259271172,16.5118,146.62,146.54,17.0595]
[1728259271371,6.8219,146.59,146.56,1.36438465]
[1728259271678,6.8203,146.63,146.57,19.33819601]
[1728259271855,6.8203,146.63,146.58,8.18603116]
[1728259272067,6.8195,146.64,146.59,19.33729601]
[1728259272257,6.819,146.65,146.6,8.18509467]
[1728259272580,15.5938,146.66,146.6,8.18509467]
[1728259272768,6.8195,146.64,146.6,13.87969068]
[1728259273358,6.8195,146.64,146.6,1.36399467]
[1728259273679,6.8195,146.64,146.6,13.87969068]
[1728259273981,6.8195,146.64,146.59,6.8216]
[1728259274175,6.8195,146.64,146.6,13.87965491]
[1728259274479,15.5938,146.66,146.6,13.87965491]
[1728259274480,6.819,146.65,146.61,8.18464631]
[1728259274683,6.819,146.65,146.6,12.51569601]
[1728259274859,6.819,146.65,146.6,19.33689601]
[1728259275381,20.0,146.69,146.6,12.51569601]
[1728259275579,6.819,146.65,146.6,19.33659601]
[1728259275958,6.819,146.65,146.61,6.8208]
[1728259276466,6.819,146.65,146.6,19.33689601]
[1728259277564,0.5,146.68,146.6,19.33689601]
[1728259277764,6.8194,146.64,146.6,19.33689601]
[1728259278278,6.8194,146.64,146.6,12.51569601]
[1728259279090,6.8199,146.63,146.6,12.51569601]
[1728259279483,17.0469,146.66,146.58,0.12549]
[1728259279792,17.0469,146.66,146.57,19.00619601]
[1728259279793,6.8209,146.61,146.57,19.00619601]
[1728259279963,6.8209,146.61,146.57,6.4905]
[1728259280166,6.8209,146.61,146.57,12.51569601]
[1728259280374,6.8209,146.61,146.56,6.823]
[1728259280570,6.8209,146.61,146.57,12.51569601]
[1728259281191,6.8209,146.61,146.58,1.36417189]
[1728259281789,6.8209,146.61,146.57,12.51569601]
[1728259281980,6.82,146.63,146.57,29.57169601]
[1728259282179,6.82,146.63,146.58,6.8221]
[1728259282777,0.5,146.65,146.58,0.12549]
[1728259282970,20.0,146.67,146.59,12.51569601]
[1728259283298,6.8194,146.64,146.59,19.33699601]
[1728259283471,6.82,146.63,146.59,19.33699601]
[1728259283966,6.8203,146.62,146.59,12.51569601]
[1728259284270,6.8218,146.59,146.55,28.77189601]
[1728259284476,6.8218,146.59,146.55,35.59539601]
[1728259285598,6.8218,146.59,146.56,1.36433505]
[1728259286372,6.8218,146.59,146.56,1.3643341]
[1728259286689,17.0526,146.61,146.53,0.25098]
[1728259286995,6.8235,146.56,146.52,12.51569601]
[1728259287371,6.8227,146.57,146.52,19.34059601]
[1728259288084,6.8227,146.57,146.53,0.12549]
[1728259288293,0.5,146.6,146.51,46.9461]
[1728259288600,20.5,146.6,146.51,52.85909601]
[1728259288776,6.8231,146.56,146.51,52.85909601]
[1728259291385,6.8231,146.56,146.51,40.3434]
[1728259291778,6.8231,146.56,146.52,12.51569601]
[1728259293878,0.5,146.59,146.51,23.8889]
[1728259294085,6.8237,146.55,146.51,36.40459601]
[1728259294495,16.2579,146.57,146.51,12.51569601]
[1728259294694,6.8241,146.54,146.51,12.51569601]
[1728259297984,15.7579,146.57,146.52,1.36485415]
[1728259298184,22.5806,146.57,146.52,6.8246]
[1728259298504,6.8232,146.56,146.52,6.8246]
[1728259299083,6.8232,146.56,146.51,19.34099601]
[1728259299287,6.8232,146.56,146.52,1.36473203]
[1728259299582,6.8232,146.56,146.51,19.34099601]
[1728259300805,6.8232,146.56,146.52,1.3647454]
[1728259301108,6.8232,146.56,146.51,19.34099601]
[1728259301597,16.2579,146.57,146.51,12.51569601]
[1728259301781,6.824,146.54,146.51,12.51569601]
[1728259302493,15.7579,146.57,146.52,1.36482946]
[1728259302800,15.7579,146.57,146.51,12.51569601]
[1728259302993,15.7579,146.57,146.53,6.8245]
[1728259303702,16.2579,146.57,146.52,23.8866]
[1728259303906,15.7579,146.57,146.52,23.8866]
[1728259304990,22.5807,146.57,146.52,23.8866]
[1728259306004,15.7579,146.57,146.52,23.8866]
[1728259306303,6.8232,146.56,146.52,23.8866]
[1728259306999,6.8237,146.55,146.51,6.8254]
[1728259307206,6.8237,146.55,146.51,19.34109601]
[1728259307586,0.5,146.54,146.49,17.0654]
[1728259307819,15.7579,146.57,146.47,6.4913]
[1728259307820,6.8256,146.51,146.47,6.8273]
[1728259308110,6.8256,146.51,146.46,52.91239601]
[1728259308279,20.0,146.55,146.46,40.3967]
[1728259308481,6.8259,146.5,146.46,23.8971]
[1728259312288,6.8259,146.5,146.47,1.36523876]
[1728259313391,6.8259,146.5,146.46,23.8971]
[1728259314493,6.8254,146.51,146.47,20.70803671]
[1728259314693,6.8254,146.51,146.47,19.34279601]
[1728259318697,23.4745,146.5,146.45,0.8759495]
[1728259319013,0.5,146.49,146.45,0.8759495]
[1728259319193,6.8278,146.46,146.45,0.8759495]
[1728259320513,40.0399,146.5,146.45,0.8759495]
[1728259321010,21.2484,146.54,146.49,12.51569601]
[1728259321212,6.8246,146.53,146.5,1.36511239]
[1728259321391,6.8246,146.53,146.49,12.51569601]
[1728259321591,6.8246,146.53,146.5,1.36501906]
[1728259322021,6.8246,146.53,146.49,12.51569601]
[1728259322210,6.825,146.52,146.49,12.51569601]
[1728259322513,6.825,146.52,146.47,29.58349601]
[1728259323317,6.8259,146.5,146.47,29.58349601]
[1728259324314,6.8259,146.5,146.47,12.51569601]
[1728259326216,21.2484,146.54,146.47,12.51569601]
[1728259326407,6.8256,146.51,146.48,1.36519717]
[1728259326912,6.8256,146.51,146.47,12.51569601]
[1728259327421,6.8259,146.5,146.46,8.19280212]
[1728259327623,6.8259,146.5,146.48,12.51569601]
[1728259329450,36.51868,146.52,146.45,0.8759495]
[1728259329617,30.855664,146.46,146.45,0.8759495]
[1728259329835,57.153664,146.46,146.45,0.8759495]
[1728259330799,73.135664,146.46,146.45,0.8759495]
[1728259331016,6.8296,146.42,146.41,0.1]
[1728259331215,50.857464,146.42,146.41,0.1]
[1728259331711,50.606484,146.42,146.41,0.1]
[1728259333020,6.8292,146.43,146.41,0.1]
[1728259333315,39.3498,146.46,146.41,0.1]
[1728259333316,6.8287,146.44,146.41,0.1]
[1728259334698,39.1712,146.5,146.41,0.1]
[1728259334902,6.8277,146.47,146.41,6.93]
[1728259335097,0.5,146.46,146.42,6.8296]
[1728259335401,7.3279,146.46,146.41,6.9301]
[1728259335598,6.8279,146.46,146.41,6.9301]
[1728259336122,20.0,146.47,146.41,0.1]
[1728259336305,6.8278,146.46,146.41,6.9301]
[1728259338198,6.8278,146.46,146.41,0.1]
[1728259338397,0.5,146.47,146.41,0.1]
[1728259338398,0.5,146.45,146.41,0.1]
[1728259338715,6.8296,146.42,146.41,0.1]
[1728259340010,0.12549,146.47,146.41,0.1]
[1728259340193,6.8291,146.44,146.41,0.1]
[1728259341424,7.3292,146.43,146.41,0.1]
[1728259341596,6.8292,146.43,146.41,0.1]
[1728259342497,7.3296,146.42,146.41,0.1]
[1728259342698,6.8296,146.42,146.41,0.1]
[1728259345130,6.8292,146.43,146.41,0.1]
[1728259345314,6.8291,146.44,146.41,0.1]
[1728259346101,6.8293,146.43,146.41,0.1]
[1728259347029,6.8296,146.42,146.41,0.1]
[1728259348812,30.606484,146.42,146.41,0.1]
[1728259350625,30.857464,146.42,146.41,0.1]
[1728259351031,50.857464,146.42,146.41,0.1]
[1728259354330,51.357464,146.42,146.41,0.1]
[1728259354529,27.3296,146.42,146.41,0.1]
[1728259354730,26.8296,146.42,146.41,0.1]
[1728259359012,50.857464,146.42,146.41,0.1]
[1728259359213,51.357464,146.42,146.41,0.1]
[1728259359451,50.857464,146.42,146.41,0.1]
[1728259360122,51.357464,146.42,146.41,0.1]
[1728259361015,50.857464,146.42,146.41,0.1]
[1728259364134,51.106484,146.42,146.41,0.1]
[1728259365625,51.357464,146.42,146.41,0.1]
[1728259366623,50.857464,146.42,146.41,0.1]
[1728259366843,51.357464,146.42,146.41,0.1]
[1728259367646,57.96696875,146.42,146.41,0.1]
[1728259369313,58.46696875,146.42,146.41,0.1]
[1728259370052,57.96696875,146.42,146.41,0.1]
[1728259371154,58.46696875,146.42,146.41,0.1]
[1728259372234,57.96696875,146.42,146.41,0.1]
[1728259372436,58.46696875,146.42,146.41,0.1]
[1728259373745,50.606484,146.42,146.41,0.1]
[1728259374345,26.8296,146.42,146.41,0.1]
[1728259375456,6.8292,146.43,146.41,0.1]
[1728259375643,23.85403042,146.48,146.41,0.1]
[1728259375839,6.8279,146.46,146.42,6.8295]
[1728259376062,6.8279,146.46,146.42,19.39023209]
[1728259376465,6.8279,146.46,146.42,12.56073209]
[1728259377738,7.10700063,146.49,146.42,28.75313209]
[1728259377739,0.5,146.48,146.42,28.75313209]
[1728259377939,6.8278,146.46,146.42,28.75313209]
[1728259378140,0.5,146.45,146.42,28.75313209]
[1728259379150,6.8278,146.46,146.42,28.75313209]
[1728259380658,6.8273,146.47,146.43,6.8291]
[1728259381236,20.0,146.48,146.43,6.8291]
[1728259381570,26.8269,146.48,146.43,6.8291]
[1728259381743,20.0,146.48,146.43,6.8291]
[1728259382066,6.8273,146.47,146.43,6.8291]
[1728259382566,0.5,146.47,146.42,45.82653209]
[1728259382741,6.8283,146.45,146.42,28.75313209]
[1728259382939,20.0,146.48,146.42,28.75313209]
[1728259383136,0.25098,146.49,146.42,28.75313209]
[1728259383137,6.8278,146.46,146.42,28.75313209]
[1728259383445,20.25098,146.49,146.42,16.1924]
[1728259383446,6.8292,146.43,146.42,16.1924]
[1728259383642,6.8292,146.43,146.41,0.1]
[1728259383862,7.3296,146.42,146.41,0.1]
[1728259384033,6.8296,146.42,146.41,0.1]
[1728259385231,44.276884,146.46,146.41,0.1]
[1728259385435,6.8293,146.43,146.41,0.1]
[1728259385634,0.5,146.42,146.41,0.1]
[1728259387342,6.8293,146.43,146.41,0.1]
[1728259390072,51.357464,146.42,146.41,0.1]
[1728259390880,50.857464,146.42,146.41,0.1]
[1728259394803,50.731974,146.42,146.41,0.1]
[1728259395360,26.8296,146.42,146.41,0.1]
[1728259399990,6.8296,146.42,146.41,0.1]
[1728259408313,6.8296,146.42,146.37,16.98883942]
[1728259408516,0.5,146.41,146.37,16.98883942]
[1728259410686,6.8296,146.42,146.37,16.98883942]
[1728259410891,7.10997729,146.46,146.37,16.98883942]
[1728259410892,6.8293,146.43,146.37,27.23623942]
[1728259411390,6.8293,146.43,146.38,6.8314]
[1728259411613,6.8298,146.42,146.38,6.8314]
[1728259411797,6.8298,146.42,146.37,34.06803942]
[1728259413708,6.8298,146.42,146.38,6.8313]
[1728259419204,6.8292,146.43,146.39,20.75405836]
[1728259427830,43.776884,146.47,146.41,12.55703942]
[1728259428050,20.0,146.47,146.42,13.92281982]
[1728259428332,6.8281,146.46,146.42,12.55703942]
[1728259429232,6.8281,146.46,146.41,6.83]
[1728259429416,6.8281,146.46,146.41,19.38703942]
[1728259430727,6.2773,146.5,146.43,12.55703942]
[1728259430932,32.7547,146.51,146.45,12.55703942]
[1728259432042,6.8269,146.48,146.45,12.55703942]
[1728259432437,7.10651796,146.53,146.47,12.55703942]
[1728259432622,6.8251,146.52,146.47,19.38423942]
[1728259432825,6.3515,146.54,146.47,36.45213942]
[1728259433027,6.8255,146.51,146.47,29.62493942]
[1728259433220,6.8255,146.51,146.47,17.0679]
[1728259434449,6.8251,146.52,146.48,12.55703942]
[1728259434844,6.8251,146.52,146.48,19.38373942]
[1728259435032,6.8251,146.52,146.48,12.55703942]
[1728259435732,7.10493424,146.56,146.49,1.36523912]
[1728259435937,6.8252,146.52,146.49,12.55703942]
[1728259436242,7.10493424,146.56,146.49,12.55703942]
[1728259436243,6.8246,146.53,146.49,12.55703942]
[1728259436636,6.8241,146.54,146.49,19.38333942]
[1728259437152,6.0662,146.58,146.49,12.55703942]
[1728259437326,6.8231,146.56,146.51,6.8251]
[1728259437522,6.8236,146.55,146.5,17.0642]
[1728259437729,6.8236,146.55,146.51,1.36493183]
[1728259437916,20.12549,146.57,146.49,6.8263]
[1728259438124,6.8241,146.54,146.5,12.55703942]
[1728259438333,6.8236,146.55,146.51,6.8254]
[1728259438537,7.3236,146.55,146.5,12.55703942]
[1728259439351,6.8236,146.55,146.5,19.38273942]
[1728259439851,6.8245,146.53,146.49,29.62213942]
[1728259440147,6.8245,146.53,146.49,36.44843942]
[1728259440322,23.776884,146.56,146.51,12.55703942]
[1728259440323,6.8232,146.56,146.51,12.55703942]
[1728259440523,6.8226,146.57,146.52,6.8249]
[1728259441853,49.3214,146.64,146.54,6.824]
[1728259442096,6.8217,146.59,146.55,12.55703942]
[1728259442262,7.10112012,146.63,146.57,12.55703942]
[1728259442432,32.2728,146.64,146.57,12.55703942]
[1728259443126,6.8203,146.62,146.57,19.37923942]
[1728259443326,6.8208,146.61,146.57,12.55703942]
[1728259444038,6.8208,146.61,146.57,20.74397854]
[1728259444359,6.8194,146.65,146.59,19.37853942]
[1728259444547,15.3757,146.68,146.61,12.55703942]
[1728259444731,22.47447715,146.68,146.61,12.55703942]
[1728259445052,22.47447715,146.68,146.59,12.55703942]
[1728259445053,0.5,146.67,146.59,12.55703942]
[1728259445226,6.8212,146.61,146.57,12.55703942]
[1728259447260,6.8208,146.61,146.57,19.37953942]
[1728259447465,20.5,146.66,146.57,12.55703942]
[1728259447626,6.8208,146.61,146.57,12.55703942]
[1728259448332,20.0,146.67,146.59,29.61063942]
[1728259448667,6.8198,146.64,146.59,36.43233942]
[1728259450848,6.819,146.65,146.61,12.55703942]
[1728259452349,6.8198,146.63,146.6,22.3962]
[1728259454059,6.8194,146.64,146.6,22.3962]
[1728259454473,6.8194,146.64,146.6,23.76019005]
[1728259454643,6.8194,146.64,146.6,22.3962]
[1728259457265,6.8199,146.63,146.6,22.3962]
[1728259458746,6.8196,146.64,146.6,22.3962]
[1728259460966,6.819,146.65,146.61,12.55703942]
[1728259463667,20.0,146.67,146.61,12.55703942]
[1728259463874,6.8188,146.66,146.61,19.37773942]
[1728259465869,6.8189,146.65,146.61,12.55703942]
[1728259466074,24.276884,146.68,146.61,12.55703942]
[1728259466375,24.276884,146.68,146.6,22.3962]
[1728259467081,6.8198,146.63,146.6,22.3962]
[1728259470663,6.8176,146.68,146.64,6.8193]
[1728259470865,20.0,146.69,146.65,12.55703942]
[1728259470866,6.8172,146.69,146.65,12.55703942]
[1728259471262,15.0198,146.72,146.65,12.55703942]
[1728259471458,6.817,146.7,146.65,19.37563942]
[1728259471681,64.41114747,146.75,146.65,19.37563942]
[1728259471682,6.8171,146.69,146.65,19.37563942]
[1728259472565,6.8171,146.69,146.65,12.55703942]
[1728259474447,6.8166,146.7,146.66,6.8184]
[1728259474652,6.8166,146.7,146.67,13.92041955]
[1728259477572,6.8176,146.68,146.65,22.7573]
[1728259479083,6.8182,146.67,146.65,22.7573]
[1728259480169,6.8182,146.67,146.65,16.3257]
[1728259480486,6.8184,146.67,146.61,21.0875]
[1728259480786,6.8184,146.67,146.62,19.37733942]
[1728259481362,0.5,146.69,146.62,19.37733942]
[1728259481559,0.5,146.69,146.61,21.0875]
[1728259481771,6.8194,146.64,146.61,21.0875]
[1728259483481,20.0,146.68,146.62,13.92090815]
[1728259483691,6.8183,146.67,146.62,12.55703942]
[1728259485085,6.8183,146.67,146.63,6.8198]
[1728259485275,6.8183,146.67,146.64,12.55703942]
[1728259486676,6.8176,146.68,146.64,12.55703942]
[1728259488777,6.8172,146.69,146.66,12.55703942]
[1728259488990,6.8172,146.69,146.67,1.36346156]
[1728259489690,6.8172,146.69,146.65,12.55703942]
[1728259490363,6.8176,146.68,146.65,12.55703942]
[1728259490692,6.8172,146.69,146.65,12.55703942]
[1728259490862,6.8172,146.69,146.66,13.92050196]
[1728259491679,6.8167,146.7,146.66,13.92050196]
[1728259491884,6.8162,146.71,146.68,12.55703942]
[1728259493684,6.8158,146.72,146.68,12.55703942]
[1728259493885,6.8158,146.72,146.7,12.55703942]
[1728259495799,6.8158,146.72,146.69,1.36315038]
[1728259496783,6.8158,146.72,146.68,19.37443942]
[1728259497512,6.8158,146.72,146.68,12.55703942]
[1728259498009,6.8158,146.72,146.69,1.36315196]
[1728259498710,6.8158,146.72,146.69,13.92019138]
[1728259500389,6.8158,146.72,146.7,1.36315172]
[1728259501587,32.2752,146.75,146.66,45.5292]
[1728259501788,32.2752,146.75,146.66,51.26793942]
[1728259501789,6.8168,146.7,146.66,51.26793942]
[1728259502405,20.5,146.74,146.66,28.13773942]
[1728259502594,6.8176,146.68,146.65,12.55703942]
[1728259502798,6.8185,146.66,146.62,21.3768]
[1728259503002,6.8185,146.66,146.62,15.0401]
[1728259503201,6.8185,146.66,146.61,6.8206]
[1728259504338,16.3592,146.7,146.63,12.55703942]
[1728259504506,24.027864,146.73,146.58,21.8637]
[1728259504507,6.8158,146.72,146.67,29.60143942]
[1728259504820,6.8157,146.72,146.67,36.41933942]
[1728259505119,6.8165,146.71,146.67,29.60143942]
[1728259505334,6.8165,146.71,146.67,36.41933942]
[1728259505498,6.8165,146.71,146.67,29.60143942]
[1728259508393,6.8165,146.71,146.67,17.0444]
[1728259508593,6.8165,146.71,146.67,23.8624]
[1728259510422,6.8165,146.71,146.67,17.0444]
[1728259514628,0.5,146.73,146.64,23.8676]
[1728259514629,6.8174,146.69,146.64,23.8676]
[1728259517632,6.8174,146.69,146.62,19.54145363]
[1728259517633,17.0386,146.73,146.62,19.54145363]
[1728259517846,6.8185,146.66,146.61,23.8718]
[1728259518333,6.8189,146.65,146.61,17.0514]
[1728259519413,16.5081,146.67,146.61,17.0514]
[1728259519618,20.0,146.7,146.63,40.950974]
[1728259519930,6.8176,146.68,146.63,23.8683]
[1728259520326,6.8176,146.68,146.64,6.8193]
[1728259520915,6.8171,146.69,146.64,6.8193]
[1728259521834,20.5,146.7,146.64,6.8193]
[1728259522012,6.8176,146.68,146.64,6.8193]
[1728259522841,6.8172,146.69,146.65,1.36353295]
[1728259523024,6.8172,146.69,146.64,6.8193]
[1728259523841,6.8177,146.68,146.63,23.8683]
[1728259524925,6.8181,146.67,146.63,17.0486]
[1728259525138,6.8185,146.66,146.63,17.0486]
[1728259525640,6.8181,146.67,146.63,17.0486]
[1728259526340,6.8181,146.67,146.63,18.41231761]
[1728259529428,6.8181,146.67,146.63,17.0486]
[1728259529745,6.8181,146.67,146.63,18.41231825]
[1728259530043,16.4353,146.71,146.63,17.0486]
[1728259530254,6.8171,146.69,146.64,6.8193]
[1728259530545,6.8171,146.69,146.65,1.36357469]
[1728259531050,6.8171,146.69,146.64,6.8193]
[1728259531214,6.8171,146.69,146.65,6.8189]
[1728259531639,6.8171,146.69,146.64,8.18287355]
[1728259533339,6.8162,146.71,146.65,53.58608405]
[1728259533541,6.8162,146.71,146.66,6.8184]
[1728259534450,6.8166,146.7,146.66,6.8184]
[1728259536952,6.8158,146.72,146.67,19.32942005]
[1728259537324,0.5,146.72,146.67,19.32942005]
[1728259537530,6.8163,146.71,146.67,19.32942005]
[1728259537931,6.8163,146.71,146.67,12.51162005]
[1728259539431,6.8163,146.71,146.66,6.8184]
[1728259540449,20.0,146.74,146.65,53.46059405]
[1728259540659,6.8158,146.72,146.67,12.51162005]
[1728259542056,6.8158,146.72,146.68,6.8175]
[1728259543168,6.8147,146.75,146.7,6.8164]
[1728259543451,15.6339,146.76,146.7,6.8164]
[1728259543452,6.8147,146.74,146.7,6.8164]
[1728259543635,6.8147,146.74,146.69,36.37062005]
[1728259544565,6.8138,146.76,146.71,19.32742005]
[1728259546161,6.8138,146.76,146.72,1.36285428]
[1728259546466,6.8138,146.76,146.71,19.32742005]
[1728259549166,20.6,146.79,146.72,30.717974]
[1728259549368,6.8138,146.76,146.71,19.32762005]
[1728259550040,6.8144,146.75,146.71,23.776884]
[1728259550240,6.8144,146.75,146.71,30.592984]
[1728259550444,18.1,146.79,146.71,30.592984]
[1728259550659,6.8139,146.76,146.71,30.592984]
[1728259552273,35.132,146.79,146.7,6.2076]
[1728259552477,6.8152,146.73,146.69,17.042]
[1728259552967,6.8163,146.71,146.68,15.4198]
[1728259553160,6.8158,146.72,146.68,15.4198]
[1728259553755,17.0343,146.77,146.68,27.93142005]
[1728259553756,6.8153,146.73,146.68,27.93142005]
[1728259553957,17.0343,146.77,146.73,6.8152]
[1728259553958,6.8134,146.77,146.73,6.8152]
[1728259554145,6.8134,146.77,146.72,12.51162005]
[1728259554578,6.8134,146.77,146.72,19.32722005]